Cogmind - Beta 13 X1 @@@ ROGUE MODE // 2023.06.22 @ 18:48:51 Player: Plexion Result: Destroyed by IK-QYE(R) with Subdweller Beam Cannon Performance ------------- Evolutions (0) 0 Regions Visited (2) 400 Robots Destroyed (36) 180 Value Destroyed (938) 938 Prototype IDs (0) 0 Alien Tech Used (0) 0 Bonus (0) 0 TOTAL SCORE: 1518 Bonus ------- None Cogmind --------- Core Integrity 0/250 Matter 156/300 Energy 250/250 System Corruption 0% Temperature Cool (15) Movement Treading (250) Ox1 Location -10/Subcaves Parts ------- > --- POWER (1) -------- Ion Engine > --- PROPULSION (2) --- Light Treads Spiked Treads > --- UTILITY (2) ------ High-capacity Storage Unit Light Armor Plating > --- WEAPON (2) ------- Mini Grenade Launcher Mining Claw > --- INVENTORY (20) --- Subdweller Monowheel Subdweller Monowheel Medium Matter Pod (100) High-capacity Matter Pod (200) Improved Terrain Scanner Light Armor Plating Light Armor Plating Light Armor Plating Light Armor Plating EM Pulse Gun Small Laser Assault Rifle Battle Rifle Grenade Launcher Mini Grenade Launcher Mini Grenade Launcher Peak State ------------ > --- POWER ------------ Ion Engine > --- PROPULSION ------- Light Treads Subdweller Monowheel > --- UTILITY ---------- High-capacity Storage Unit Light Armor Plating > --- WEAPON ----------- Mini Grenade Launcher Mining Claw > --- INVENTORY -------- Subdweller Monowheel Medium Matter Pod High-capacity Matter Pod Improved Terrain Scanner Light Armor Plating Light Armor Plating Light Armor Plating Light Armor Plating EM Pulse Gun Small Laser Assault Rifle Battle Rifle Grenade Launcher Mini Grenade Launcher Mini Grenade Launcher [Rating: 11] Favorites ----------- Power Light Ion Engine Engine Light Ion Engine Propulsion Light Treads Treads Light Treads Wheel Subdweller Monowheel Utility High-capacity Storage Unit Storage High-capacity Storage Unit Processor Signal Interpreter Protection Light Armor Plating Weapon Mini Grenade Launcher Energy Gun Small Laser Ballistic Gun Assault Rifle Launcher Mini Grenade Launcher Slashing Weapon Mining Claw Build | -11 -10 -10 ------- Run | Jun Mat Sub Slots Evolved . | . . . Power . | . . . Propulsion . | . . . Utility . | . . . Weapon . | . . . Parts Attached 27 | 6 13 8 Power 2 | 1 . 1 Engine 2 | 1 . 1 Core . | . . . Reactor . | . . . Propulsion 5 | 2 . 3 Treads 4 | 2 . 2 Leg . | . . . Wheel 1 | . . 1 Hover . | . . . Flight . | . . . Utility 7 | 1 3 3 Device . | . . . Storage 2 | 1 1 . Processor 1 | . . 1 Hackware . | . . . Protection 4 | . 2 2 Artifact . | . . . Weapon 13 | 2 10 1 Energy Gun 4 | 1 3 . Energy Cannon . | . . . Ballistic Gun 1 | 1 . . Ballistic Cannon . | . . . Launcher 7 | . 7 . Special Weapon . | . . . Impact Weapon . | . . . Slashing Weapon 1 | . . 1 Piercing Weapon . | . . . Special Melee Weapon . | . . . Unidentified Prototypes . | . . . Parts Lost 5 | . . 5 Power 1 | . . 1 Propulsion 2 | . . 2 Utility 2 | . . 2 Weapon . | . . . Highest Loss Streak 3 | . . 3 To Critical Strikes . | . . . Average Slot Usage (%) 98 | . 96 98 Engine 13 | . 14 13 Treads 27 | . 28 27 Storage 14 | . 14 14 Protection 12 | . 11 13 Energy Gun 4 | . 9 . Ballistic Gun 8 | . 14 3 Launcher 9 | . 4 14 Slashing Weapon 5 | . . 10 Naked Turns . | . . . Heaviest Build 51 | 11 51 51 Greatest Support 40 | 40 40 40 Greatest Overweight (x) 2 | . 1 2 Average Overweight (x) . | . . 1 Largest Inventory Capacity 20 | 8 20 20 Average Capacity 18 | 6 18 20 Most Carried 20 | 2 20 20 Average Carried 15 | . 14 17 Final Capacity 20 | 8 20 20 Final Carried 20 | 2 20 16 Class Distribution -------------------- 100% | Mutant Dominant Class ---------------- Mutant | -10/Materials Mutant | -10/Subcaves Resources | -11 -10 -10 ----------- Run | Jun Mat Sub Matter Collected 1118 | 232 559 327 Remotely . | . . . Salvage Created 747 | . 508 239 Parts 58 | . 33 25 Haulers Intercepted 2 | . 2 . Recyclers Shooed . | . . . Parts Field Recycled . | . . . Retrieved Matter . | . . . Parts Self-Destructed 10 | . . 10 Prevented . | . . . Kills | -11 -10 -10 ------- Run | Jun Mat Sub Combat Hostiles Destroyed 26 | . 7 19 Guns 4 | . 4 . AOE 22 | . 3 19 Classes Destroyed 9 | . 7 2 Worker 2 | . 2 . Tunneler 1 | . 1 . Hauler 2 | . 2 . Recycler 2 | . 2 . Turret 2 | . . 2 Watcher 1 | . 1 . Swarmer 8 | . 1 7 Grunt 7 | . 6 1 Subdweller 11 | . . 11 Best Kill Streak 6 | . 4 6 Combat Bots Only 4 | . 2 4 Max Kills in Single Turn 3 | . 2 3 Gunslinging . | . . . Exploded 3 | . 1 3 Melee . | . . . Uniques/NPCs Destroyed . | . . . Combat | -11 -10 -10 -------- Run | Jun Mat Sub Damage Taken 1101 | . 250 851 Core 273 | . 41 232 Absorbed by Shields . | . . . Redirected to Shielding 23 | . 23 . Core Remaining (%) 100 | 100 . . Volleys Fired 65 | . 27 38 Largest 2 | . 2 1 Hottest 60 | . 60 30 Shots Fired 84 | . 46 38 Gun 38 | . 38 . Cannon . | . . . Launcher 46 | . 8 38 Special . | . . . Kinetic 19 | . 19 . Thermal 15 | . 15 . Explosive 46 | . 8 38 Electromagnetic 4 | . 4 . Robot Hit Streak 4 | . 4 4 Robot Miss Streak 3 | . 3 1 Penetration Max . | . . . Secondary Targets . | . . . Shots Hit Robots 40 | . 26 14 Core Hits 58 | . 24 34 Critical Kills . | . . . Critical Parts Destroyed . | . . . Critical Strikes . | . . . Melee Attacks 18 | . . 18 Impact . | . . . Slashing 18 | . . 18 Piercing . | . . . Sneak Attacks . | . . . Combat Hostiles . | . . . Follow-up Attacks . | . . . Damage Inflicted 2925 | . 743 2182 Guns 270 | . 270 . Cannons . | . . . Explosions 2655 | . 473 2182 Melee . | . . . Ramming . | . . . Kinetic 135 | . 135 . Thermal 107 | . 107 . Explosive 2655 | . 473 2182 Electromagnetic 28 | . 28 . Impact . | . . . Slashing . | . . . Piercing . | . . . Highest Corruption . | . . . Average Corruption . | . . . Corruption Purged . | . . . Corruption Blocked . | . . . Overload Shots . | . . . Overflow Damage . | . . . Projectiles . | . . . Explosions . | . . . Melee . | . . . Knockbacks . | . . . Impact . | . . . Kinetic . | . . . Secondary . | . . . Self-Inflicted Damage 345 | . 51 294 Shots 14 | . 2 12 Rammed . | . . . Targets Rammed . | . . . Kicked . | . . . Crushed . | . . . Highest Temperature 45 | . 45 . Average Temperature 15 | . 15 . Received Heat Transfer 279 | . 117 162 Siege Activations . | . . . Robots Corrupted . | . . . Combat Hostiles . | . . . Parts Fried . | . . . Impact Corruptions . | . . . Robots Melted . | . . . Combat Hostiles . | . . . Parts Melted . | . . . Heat Transferred 250 | . 250 . Parts Sabotaged . | . . . Parts Stolen . | . . . Parts Stripped . | . . . Power Chain Reactions . | . . . Missiles Intercepted . | . . . Alert | -11 -10 -10 ------- Run | Jun Mat Sub Peak Influence 272 | . 272 . Initial . | . . . Average 96 | . 101 . Maximum Alert Level 1 | . 1 . Low Security (%) 89 | 100 88 . Level 1 10 | . 11 . Level 2 . | . . . Level 3 . | . . . Level 4 . | . . . Level 5 . | . . . High Security . | . . . Max Security . | . . . Squads Dispatched 2 | . 2 . Investigation . | . . . Extermination . | . . . Reinforcement 2 | . 2 . Assault . | . . . Garrison . | . . . Intercept . | . . . Searches Triggered . | . . . Construction Impeded . | . . . Haulers Reinforced . | . . . Active Scanning Responses . | . . . Cargo Convoy Interrupts . | . . . Stealth | -11 -10 -10 --------- Run | Jun Mat Sub Distress Signals 2 | . 2 . Communications Jammed . | . . . Distress Signals . | . . . Times Spotted 51 | . 16 35 Peak Tracking Total 5 | . 3 5 Tactical Retreats 4 | . 1 3 Traps | -11 -10 -10 ------- Run | Jun Mat Sub Traps Triggered . | . . . Indirectly . | . . . Trap Hack Attempts . | . . . Triggered . | . . . Disarmed . | . . . Reprogrammed . | . . . Reused . | . . . Traps Extracted . | . . . Installed . | . . . Triggered . | . . . Machines | -11 -10 -10 ---------- Run | Jun Mat Sub Machines Disabled 7 | . 4 3 Max in Single Turn 2 | . 2 2 Machines Repaired . | . . . Machines Sabotaged . | . . . Overloaded Fab Kills . | . . . Hacking | -11 -10 -10 --------- Run | Jun Mat Sub Machines Accessed 2 | . 2 . Terminals 2 | . 2 . Fabricators . | . . . Repair Stations . | . . . Recycling Units . | . . . Scanalyzers . | . . . Garrison Access . | . . . Total Hacks 4 | . 4 . Successful 1 | . 1 . Failed 3 | . 3 . Catastrophic 1 | . 1 . Database Lockouts . | . . . Manual . | . . . Terminals 4 | . 4 . Fabricators . | . . . Repair Stations . | . . . Recycling Units . | . . . Scanalyzers . | . . . Garrison Access . | . . . Terminal Hacks 1 | . 1 . Zone Layout 1 | . 1 . Fabricator Hacks . | . . . Repair Station Hacks . | . . . Recycling Unit Hacks . | . . . Scanalyzer . | . . . Garrison Access Hacks . | . . . Unauthorized Hacks . | . . . Terminals . | . . . Fabricators . | . . . Repair Stations . | . . . Recycling Units . | . . . Scanalyzers . | . . . Garrison Access . | . . . Data Cores Recovered . | . . . Used . | . . . Hacking Detections 2 | . 2 . Full Trace Events . | . . . Feedback Events . | . . . Feedback Blocked . | . . . Robot Schematics Acquired . | . . . Robots Built . | . . . Authchips . | . . . Time . | . . . Total Robot Build Rating . | . . . Part Schematics Acquired . | . . . Parts Built . | . . . Authchips . | . . . Time . | . . . Total Part Build Rating . | . . . Parts Repaired . | . . . Time . | . . . Parts Recycled . | . . . Recycled Matter . | . . . Retrieved Matter . | . . . Retrieved Components . | . . . Parts Scanalyzed . | . . . Part Schematics Acquired . | . . . Parts Damaged . | . . . Bothacking | -11 -10 -10 ------------ Run | Jun Mat Sub Used RIF Installer . | . . . Robots Hacked . | . . . Non-combat . | . . . Combat . | . . . Robot Hacks Applied . | . . . Relay Couplers Released . | . . . Fabnet Peak Effective % . | . . . Robots Rewired . | . . . Allies Hacked . | . . . Hacks Repelled . | . . . Allies | -11 -10 -10 -------- Run | Jun Mat Sub Total Allies . | . . . Largest Group . | . . . Highest-Rated Group . | . . . Highest-Rated Ally . | . . . Total Orders . | . . . Ally Attacks . | . . . Total Damage . | . . . Kills . | . . . Allies Corrupted . | . . . Allies Melted . | . . . Intel | -11 -10 -10 ------- Run | Jun Mat Sub Robot Analysis Total . | . . . Derelict Logs Recovered 1 | . . 1 Drone Launches . | . . . Drone Recoveries . | . . . Exploration | -11 -10 -10 ------------- Run | Jun Mat Sub Turns Passed 4040 | 92 1782 2166 Spaces Moved 1632 | 55 725 852 Core 5 | 5 . . Treads 1598 | 50 725 823 Legs . | . . . Wheels 29 | . . 29 Hover . | . . . Flight . | . . . Fastest Speed 50 | 50 160 130 Average Speed 228 | 150 224 236 Slowest Speed 320 | 160 240 320 Overloaded Moves . | . . . Propulsion Burnouts . | . . . Robots Hopped . | . . . Cave-ins Triggered . | . . . Exploration Rate (%) 54 | 3 95 66 Regions Visited 2 Branch Regions 1 Pre-discovered Areas 1 | . . 1 Known Exits Taken . | . . . Unknown Exits Taken 2 | 1 1 . Scrap Searched 3 | . . 3 Spaces Dug 48 | . 17 31 Terrain Destroyed 273 | . 94 179 Melee . | . . . Projectile . | . . . AOE 273 | . 94 179 Terrain Rammed . | . . . Walls Destroyed . | . . . Machines Disabled . | . . . Actions | -11 -10 -10 --------- Run | Jun Mat Sub Total 1821 | 62 829 930 Wait 48 | . 41 7 Move 1630 | 54 724 852 Hop . | . . . Pick Up 24 | 2 19 3 Fast Attach 10 | 6 3 1 Attach 6 | . . 6 Detach 4 | . 2 2 Swap 11 | . 10 1 Drop 5 | . 3 2 Fire 65 | . 27 38 Melee 18 | . . 18 Ram . | . . . Kick . | . . . Crush . | . . . Escape Stasis . | . . . Rewire . | . . . Trap . | . . . Miscellaneous . | . . . Route ------- -11/Junkyard -10/Materials (discovered 5 exits: [*Mat x3] / [Min] / [*Sub]) -10/Subcaves (discovered 2 exits: *Mat / *Rec) History --------- Turn | Location | Event 2 | -11/Junkyard | Met Revision 17 44 | -11/Junkyard | Discovered new exit (range 14) 93 | -11/Junkyard | Entered Materials 216 | -10/Materials | Discovered new exit (range 8) 312 | -10/Materials | Build established: Mutant 500 | -10/Materials | Derelicts attacked the area 557 | -10/Materials | Discovered new exit (range 10) 644 | -10/Materials | Discovered new exit (range 17) 986 | -10/Materials | Discovered new exit (range 5) 1848 | -10/Materials | Discovered new exit (range 12) 1875 | -10/Materials | Entered Subcaves 1939 | -10/Subcaves | Learned location of Zion (-7) 1939 | -10/Subcaves | Met a Zionite searching for "candidates" 2223 | -10/Subcaves | Shifting Twisted Machinery released Battle Rifle 2747 | -10/Subcaves | Discovered new exit (range 3) 2750 | -10/Subcaves | Discovered new exit (range 11) 2758 | -10/Subcaves | Core integrity fell below 50% 2790 | -10/Subcaves | Lost 3 parts (1p1n1u) 2846 | -10/Subcaves | Identified exit to Recycling 2863 | -10/Subcaves | Identified exit to Materials 2928 | -10/Subcaves | Ambushed by Subdweller buried in earth 2930 | -10/Subcaves | Ambushed by Subdweller buried in earth 3316 | -10/Subcaves | Learned 2 Materials zone layouts 3828 | -10/Subcaves | A swath of the cavern ceiling suddenly collapsed 3930 | -10/Subcaves | Core integrity fell below 20% 4041 | -10/Subcaves | Ambushed by Subdweller buried in earth 4041 | -10/Subcaves | Destroyed by IK-QYE(R) with Subdweller Beam Cannon Last Messages --------------- 03733_ Found 15 Matter. 03734_ Acquired 15 matter. 03736_ Searching scrap... 03736_ Found Barrage Gun. 03736_ Found Sub. Monowheel. 03736_ Found 26 Matter. 03737_ Acquired 26 matter. 03753_ Acquired Sub. Monowheel. A swath of the cavern ceiling suddenly collapses. 03931_ VQ-6ZQ(R) destroyed. 03932_ The unstable cave ceiling collapses. 03932_ Lgt. Treads destroyed. 03933_ Destroyed Scrap Shield. 03934_ Lgt. Armor Plating destroyed. 03935_ WE-4YA(R) destroyed. 03946_ The unstable cave ceiling collapses. 03973_ 6J-7XB(R) destroyed. 03977_ Acquired 14 matter. 03982_ Acquired Spk. Treads. 04038_ The unstable cave ceiling collapses. Map ----- +----------------------------------------------------+ | ?????????????????????????????????????????????????? | | ?????????????????????????????????????????????????? | | ?????????????????????????????????????????????????? | | ?????????????????????????????????????????????????? | | ?????????????????????????????????????????????????? | | ?????????????????????????????????????????????????? | | ?????????????????????????????????????????????????? | | ?????????????????????????????????????????????????? | | ?????????????????????????????????????????????????? | | ?????????????????????????????????????????????????? | | ?????????????????????????????????????????????????? | | ???????????????????????###???????????????????????? | | ??????????????????##### "#???????????????????????? | | ??????????????????# "##?????##???????????????? | | ???????????????????#" " #???? ????????????????? | | ???????????????????#" """ #???? #????????????????? | | ?????????????????### """ ##### ????????????????? | | ??????????????####"" ####? R# ##???????????????? | | ??????????????# ### #???????????????? | | ??????????????# # #R #???????????????? | | ?????????????## #???????????????? | | ????????????##"""" "" #???????????????? | | ???????????## " " [ #???????????????? | | ??????????## " " # ##???????????????? | | ??????????# """" ### #???????????????????? | | ??????????## ## #### @ #???????????????????? | | ???????????# #??# # #???????????????????? | | ???????????# ## #??# ### #??????????????????? | | ???????????## # ###?####??#" ?????????????????? | | ???????????# ## ##???????## ????????????????? | | ???????????## #?????????? ??????????????? | | ???????????# #???????????##?????????????? | | ?????????### #??????????????????????????? | | ?????????# #??????????????????????????? | | ?????????# ##??????????????????????????? | | ?????????# # ##??????????????????????????? | | ?????????# # & #??????????????????????????? | | ?????????# ###& & #??????????????????????????? | | ?????????### #??????????????????????????? | | ??????????# "" #??????????????????????????? | | ??????????# # ##??????????????????????????? | | ??????????### # # #???????????????????????????? | | ????????????# " #???????????????????????????? | | ????????????#" ## #???????????????????????????? | | ????????????##" ## ##???????????????????????????? | | ???????????## #? #????????????????????????????? | | ??????????##" #?" ????????????????????????????? | | ??????????# " ##?? #???????????????????????????? | | ??????????# "##??? ##???????????????????????????? | | ??????????#" ##?? "#????????????????????????????? | +----------------------------------------------------+ Best States ------------- Heat Dissipation 25 Energy Generation 10 Energy Capacity 250 Matter Stores 300 Matter Capacity 300 Sight Range 16 Terrain Scan Density 10 Armor Coverage 150 Propulsion Shielding 33 Evasion (%) 40 Recoil Reduction 2 Item Schematics ----------------- None Robot Schematics ------------------ None Fabricated ------------ Nothing Alien Tech Used ----------------- None Achievements -------------- None Challenges ------------ None Game ------ Seed SegregatorTitaniumField Manual? 0 Play Time 00:15:53 Cumulative 408.6 hours Start 2023.06.22 @ 18:34:32 End 2023.06.22 @ 18:48:51 Sessions 1 Manual Loads 0 Difficulty Rogue Special Mode None Game No. 490 Rogue 403 Adventurer 87 Explorer 0 Win Type - Total 21 Types 7/0/12/1/1/0/0/0/0 Lore% 84 Gallery% 90 Achievement% 73 Wizard Run 0 Options --------- ASCII 0 Keyboard 1 Movement Numpad Keybinds 0 Fullscreen 1 Font 18/SmallcapsGlow Map View 76x50 Tactical HUD 1 Map Filters NONE Filters NONE Steam 1 RUN: 1c821e90-eff0-4bad-b6ce-27f4e920301c